[Event "39th Muensterland Open 2022"]
[Site "Muenster"]
[Date "2022.10.06"]
[Round "7.9"]
[White "Quinones-Maletti, Julio Guillermo"]
[Black "Garbuz, Vitaliy"]
[Result "0-1"]
[ECO "B35"]
[WhiteElo "2020"]
[BlackElo "2142"]
[Annotator "TA"]
[PlyCount "52"]
[EventDate "2022.10.01"]
[EventType "swiss"]
[EventCountry "GER"]
[SourceTitle "playchess.com"]
[Source "ChessBase"]
[SourceQuality "1"]
[TimeControl "40/5400+30:1800+30"]

{[%evp 14,52,20,3,40,43,22,26,65,76,64,30,43,-56,-48,-46,-65,-140,-135,-129,-124,-100,-77,-68,-68,-70,-85,-87,-87,-86,-91,-87,-54,-441,-431,-1060,-995,-29986,-29987,-29987,-29988]} 1. e4 {[%emt 0:00:03]} c5 {[%emt 0:00:17]} 2. Nf3 {[%emt 0:00:10]} Nc6 {[%emt 0:00:07]} 3. d4 {[%emt 0:00:40]} cxd4 {[%emt 0:00:06]} 4. Nxd4 {[%emt 0:00:05]} g6 {[%emt 0:00:05]} 5. Nc3 {[%emt 0:00:27]} Bg7 {[%emt 0:00:07]} 6. Be3 {[%emt 0:00:47]} Nf6 {[%emt 0:00:07]} 7. Bc4 {[%emt 0:00:15]} O-O {[%emt 0:00:08]} 8. Bb3 {[%emt 0:00:08]} Re8 {[%emt 0:00:07] B35: Sicilian: Accelerated Dragon with 5 Nc3: main line.} 9. f3 {[%emt 0:01:48]} e6 {[%emt 0:00:30][%cal Be7e6,Be6d5,Bd5d4,Bd4c3,Bc3b2][%mdl 32]} 10. f4 {[%emt 0:00:55] 10.Qd2 gains popularity.} Nd5 {[%emt 0:00:08] White has an edge.} 11. exd5 {[%emt 0:43:14]} exd5 {[%emt 0:00:31]} 12. Kf2 {[%emt 0:09:24]} (12. O-O $5 Rxe3 13. Ndb5 $14) 12... Rxe3 $1 {[%emt 0:00:07]} 13. Nxc6 {[%emt 0:09:31] [#]} ({Much worse is} 13. Nxd5 Re4 14. Nf3 d6 $11) (13. Kxe3 $14 Bxd4+ 14. Kd2) 13... bxc6 $1 $15 {[%emt 0:00:52]} 14. Kxe3 {[%emt 0:00:15] And now Kf2 would win.} d4+ {[%emt 0:00:12] [#]} 15. Kd2 $146 {[%emt 0:00:10]} (15. Kf2 $15 dxc3 16. bxc3) ({Predecessor:} 15. Kf3 dxc3 16. Qd6 cxb2 17. Rae1 Qf8 18. Qxf8+ Kxf8 19. Re3 d5 20. g4 Be6 21. Re2 {0-1 (32) Lima,V (2002)-Bastos,G (1857) Niteroi 2022}) 15... Qa5 {[%emt 0:05:49][%mdl 64] Pin} 16. Qf3 {[%emt 0:00:09][%cal Oa1e1]} d5 {[%emt 0:00:30]} 17. Rae1 {[%emt 0:05:06] aiming for Re8+.} Bf5 {[%emt 0:03:28]} 18. g4 {[%emt 0:00:24]} dxc3+ {[%emt 0:01:18]} 19. Kc1 $1 {[%emt 0:01:31]} Be4 {[%emt 0:06:37] Black is more active.} 20. Rxe4 {[%emt 0:00:02] Strongly threatening Re2.} dxe4 {[%emt 0:00:16]} 21. Qxe4 {[%emt 0:00:09]} cxb2+ {[%emt 0:02:02]} 22. Kb1 {[%emt 0:00:11]} Qd2 $40 {[%emt 0:12:43][%mdl 128] Black mounts an attack.} 23. f5 $2 {[%emt 0:12:23][%mdl 8192] [#] Loses the game.} ({White should play} 23. Qxc6 $15 Rd8 24. Qf3) 23... Bh6 $1 $19 {[%emt 0:14:35] ( -> ...Qc1+)} 24. Kxb2 {[%emt 0:06:32]} (24. Qe1 $142 Qc1+ 25. Qxc1 bxc1=Q+ 26. Rxc1 Bxc1 27. Kxc1) 24... Bg7+ {[%emt 0:00:16]} 25. Kb1 {[%emt 0:01:46]} Qc3 {[%emt 0:00:18][%csl Gg7][%cal Rc3a1]} 26. Kc1 {[%emt 0:00:17]} Rd8 {[%emt 0:00:17] Weighted Error Value: White=0.95/Black=0.07 (flawless)} 0-1

[Event "39th Muensterland Open 2022"]
[Site "Muenster"]
[Date "2022.10.06"]
[Round "7.10"]
[White "Blockhaus, Tobias"]
[Black "Schliebener, Stephan"]
[Result "1-0"]
[ECO "B06"]
[WhiteElo "1693"]
[BlackElo "2119"]
[Annotator "TA"]
[PlyCount "84"]
[EventDate "2022.10.01"]
[EventType "swiss"]
[EventCountry "GER"]
[SourceTitle "playchess.com"]
[Source "ChessBase"]
[SourceQuality "1"]
[TimeControl "40/5400+30:1800+30"]

{[%evp 9,84,52,71,58,56,60,59,55,59,48,46,42,60,29,44,29,24,23,64,57,61,51,127,75,164,64,111,-6,-6,-6,-6,-7,-2,-79,-87,-92,-92,-105,-106,-102,-110,-118,-118,-118,-118,-106,-105,-182,-99,-186,-104,-331,-289,-467,-422,-552,-568,-497,-490,-785,-675,-835,-839,-818,-831,-742,386,208,158,0,0,0,0,0,5297,29965,29990]} 1. e4 {[%emt 0:00:06]} g6 {[%emt 0:00:07]} 2. d4 {[%emt 0:00:09]} Bg7 {[%emt 0:00:05]} 3. Nc3 {[%emt 0:00:20]} a6 {[%emt 1:31:48]} 4. f4 {[%emt 0:03:39]} d6 {[%emt 1:30:51]} 5. Nf3 {[%emt 0:00:25]} Bg4 {[%emt 0:00:49]} 6. Be2 {[%emt 0:02:17] B06: Modern Defence.} Nc6 {[%emt 0:00:54]} 7. Be3 {[%emt 0:08:05]} e5 {[%emt 0:01:14]} 8. fxe5 {[%emt 0:08:08] White is slightly better.} Bxf3 {[%emt 0:00:31]} 9. Bxf3 {[%emt 1:11:51] exd6 is the strong threat.} dxe5 {[%emt 0:00:05]} 10. d5 {[%emt 0:01:38]} Nd4 {[%emt 0:01:17]} 11. O-O {[%emt 0:01:21]} Ne7 {[%emt 0:02:53]} 12. Ne2 $36 {[%emt 0:12:41][%cal Re2d4][%mdl 2048] White is more active.} Nxf3+ {[%emt 1:26:32]} 13. Rxf3 {[%emt 0:00:08] [#]} Qd7 $146 {[%emt 0:09:39]} ({Predecessor:} 13... O-O 14. c4 b6 15. Nc3 f5 16. Qe2 f4 17. Bf2 g5 18. Rd3 Rf6 19. c5 bxc5 20. Bxc5 {1-0 (64) Xu,Y (2507)-Dimakiling,O (2420) Chess.com INT 2022}) 14. c4 {[%emt 0:01:44]} f5 {[%emt 0:00:42]} 15. Nc3 {[%emt 0:01:49][%cal Be2c3,Bc3a4,Ba4c5,Bc5e6][%mdl 32]} f4 {[%emt 0:00:33] [#]} (15... O-O $1 $14) 16. Bc5 {[%emt 0:01:44]} (16. Bf2 $142 $1) 16... g5 {[%emt 0:01:19] [#]} (16... Nc8 $16) 17. b4 {[%emt 0:08:48]} (17. Ba3 $1 $18) 17... Nc8 {[%emt 0:17:44]} (17... O-O $14) 18. Qa4 {[%emt 0:07:41] White is more active.} (18. Rd3 $16) 18... Qxa4 {[%emt 0:03:26]} 19. Nxa4 {[%emt 0:00:53]} b6 {[%emt 0:00:13][%cal Bb7b6,Bb6b5][%mdl 32]} 20. Bf2 {[%emt 0:00:11]} Nd6 {[%emt 0:00:30][%csl LRc4,LRe4]} 21. Re1 {[%emt 0:09:33]} (21. c5 $11 Nxe4 22. cxb6 cxb6 23. Bxb6) 21... Nxc4 $17 {[%emt 0:01:00]} 22. Rc1 {[%emt 0:07:49]} b5 {[%emt 0:00:07]} 23. Nc5 {[%emt 0:00:13]} g4 {[%emt 0:11:06]} 24. Rd3 {[%emt 0:00:59]} Bf8 {[%emt 0:00:28]} 25. Ne6 {[%emt 0:00:41]} Bd6 {[%emt 0:00:08]} 26. Bc5 {[%emt 0:04:58]} Kd7 {[%emt 0:01:00]} 27. a4 {[%emt 0:02:43]} Rhc8 {[%emt 0:03:55]} 28. Rdc3 {[%emt 0:01:57]} (28. Rc2 $17 {was necessary.}) 28... Ke7 {[%emt 0:03:12]} (28... c6 $19 {Strongly threatening ...a5.} 29. a5 cxd5 30. exd5 Bxc5+ 31. Nxc5+ Kd6) 29. Ra1 {[%emt 0:01:17]} (29. g3 $17) 29... h6 {[%emt 0:06:32]} (29... c6 $19 {White must now prevent ...a5.} 30. a5 Bxc5+ 31. Nxc5 cxd5 32. exd5 Kd6) 30. axb5 $2 {[%emt 0:00:41]} (30. a5 $17) 30... axb5 $19 {[%emt 0:00:08]} 31. Rxa8 {[%emt 0:00:10]} (31. Rcc1 {keeps fighting.} c6 32. Re1) 31... Rxa8 {[%emt 0:00:05]} 32. Nxc7 {[%emt 0:00:08]} Ra1+ {[%emt 0:00:21]} 33. Kf2 {[%emt 0:00:07]} Ra2+ {[%emt 0:00:34]} 34. Ke1 {[%emt 0:07:57]} (34. Kg1 $142 Bxc5+ 35. bxc5 Ra1+ 36. Kf2) 34... Rxg2 {[%emt 0:16:41]} 35. Nxb5 {[%emt 0:00:54]} Bxc5 {[%emt 0:00:08]} 36. bxc5 {[%emt 0:01:52][%mdl 4096] Endgame KRN-KRN} Nd2 {[%emt 0:18:05]} 37. d6+ {[%emt 0:00:39]} Kf6 $4 {[%emt 0:00:00][%mdl 8192]} (37... Kd8 38. c6 Nf3+ 39. Kf1 Rg1+ 40. Kf2) (37... Ke6 $19 {( -> ...f3)} 38. Nc7+ Kd7) 38. d7 $18 {[%emt 0:00:26]} Ke7 {[%emt 0:00:00]} 39. Rd3 $2 {[%emt 0:02:26]} (39. d8=Q+ $16 Kxd8 40. Rd3+ Ke7 41. Rxd2 Rg1+ 42. Kf2) 39... Nf3+ $11 {[%emt 0:00:00]} 40. Kf1 {[%emt 0:00:15]} Rg1+ {[%emt 0:00:00]} 41. Kf2 {[%emt 0:30:35]} Kd8 $2 {[%emt 0:18:30][%mdl 8192]} (41... Rg2+ $11 42. Kf1 Rg1+ 43. Kf2 Rg2+ 44. Kf1) 42. c6 $18 {[%emt 0:01:08]} Nd4 {[%emt 0:00:51] Weighted Error Value: White=0.64/Black=0.34} 1-0

[Event "39th Muensterland Open 2022"]
[Site "Muenster"]
[Date "2022.10.07"]
[Round "8.1"]
[White "Koellner, Ruben Gideon"]
[Black "Bungarten, Jona"]
[Result "1-0"]
[ECO "D02"]
[WhiteElo "2403"]
[BlackElo "2010"]
[Annotator "TA"]
[PlyCount "39"]
[EventDate "2022.10.01"]
[EventType "swiss"]
[EventCountry "GER"]
[SourceTitle "playchess.com"]
[Source "ChessBase"]
[SourceQuality "1"]
[TimeControl "40/5400+30:1800+30"]

{[%evp 9,39,0,33,30,43,42,52,49,52,37,58,49,53,44,45,31,52,66,291,292,294,287,280,291,376,372,414,386,406,397,378,340]} 1. d4 {[%emt 0:00:03]} d5 {[%emt 0:00:10]} 2. Nf3 {[%emt 0:00:05]} Nf6 {[%emt 0:00:08]} 3. Bf4 {[%emt 0:00:05]} c5 {[%emt 0:00:19]} 4. e3 {[%emt 0:00:05]} Nc6 {[%emt 0:00:13]} 5. Nbd2 {[%emt 0:00:05]} Bf5 {[%emt 0:00:32]} 6. Bb5 {[%emt 0:00:06] D02: 1 d4 d5 2 Nf3 sidelines, including 2...Nf6 3 g3 and 2...Nf6 3 Bf4.} e6 {[%emt 0:01:40]} 7. O-O {[%emt 0:00:45] [#]} Bd6 $146 {[%emt 0:04:23]} ({Predecessor:} 7... Rc8 8. c3 Be7 9. dxc5 Bxc5 10. Nd4 Bg6 11. Qa4 Qb6 12. N2b3 O-O 13. Nxc5 Qxc5 14. Bxc6 bxc6 {1-0 (55) Neelotpal,D (2410)-Havanecz,B (2257) Chess.com INT 2021}) 8. dxc5 {[%emt 0:00:46] White is slightly better.} Bxc5 {[%emt 0:01:37]} 9. Ne5 {[%emt 0:00:06]} Qb6 {[%emt 0:02:24]} 10. c4 {[%emt 0:00:26]} O-O {[%emt 0:01:00]} 11. Bxc6 {[%emt 0:00:17]} bxc6 {[%emt 0:00:05]} 12. g4 {[%emt 0:00:06][%cal Bg2g4,Bg4g5][%mdl 32]} Bg6 {[%emt 0:11:15]} 13. g5 $36 {[%emt 0:00:07][%mdl 2048] White fights for an advantage.} Ne4 {[%emt 0:00:15] Loses the game.} (13... Nh5 $1 $14) 14. Nd7 $1 $18 {[%emt 0:02:54][%csl LRb6,LRf8]} Qb4 {[%emt 0:00:09]} 15. Nxe4 {[%emt 0:00:42]} (15. Nxf8 Nxd2 16. Nxg6 hxg6 $14) 15... Bxe4 {[%emt 0:00:11] [#]} 16. a3 $1 {[%emt 0:00:37]} ({Not} 16. Nxf8 Rxf8 17. cxd5 Bxd5 $16) 16... Qxc4 {[%emt 0:00:38]} 17. Rc1 {[%emt 0:00:17][%mdl 64] Skewer. Really sharp! White is winning.} Qa2 {[%emt 0:00:55]} 18. Nxc5 {[%emt 0:00:35]} ({Don't play} 18. Rxc5 Rfd8 19. Ne5 (19. Rxc6 Rxd7 20. f3 Bf5 $16) 19... Qxb2 20. Nxc6 Re8 $18) 18... Qxb2 {[%emt 0:01:28]} 19. Nxe4 {[%emt 0:00:56]} dxe4 {[%emt 0:00:05]} 20. Qd4 {[%emt 0:00:23] Prevents e5.  Weighted Error Value: White=0.00 (flawless) /Black=0.52} 1-0

[Event "39th Muensterland Open 2022"]
[Site "Muenster"]
[Date "2022.10.07"]
[Round "8.3"]
[White "Garbuz, Vitaliy"]
[Black "Dordevic, Tom"]
[Result "1/2-1/2"]
[ECO "E05"]
[WhiteElo "2142"]
[BlackElo "1767"]
[Annotator "TA"]
[PlyCount "83"]
[EventDate "2022.10.01"]
[EventType "swiss"]
[EventCountry "GER"]
[SourceTitle "playchess.com"]
[Source "ChessBase"]
[SourceQuality "1"]
[TimeControl "40/5400+30:1800+30"]

{[%evp 18,83,0,0,39,24,89,97,87,97,88,91,168,147,285,294,283,126,127,114,172,0,0,0,0,0,0,0,0,0,0,-71,-49,-224,-229,-433,0,0,0,-117,-33,-73,53,0,0,0,0,0,41,45,67,45,63,42,127,97,109,109,109,0,82,0,0,0,0,0,0,0]} 1. Nf3 {[%emt 0:00:48]} Nf6 {[%emt 0:00:06]} 2. c4 {[%emt 0:00:05]} e6 {[%emt 0:00:04]} 3. g3 {[%emt 0:00:25]} d5 {[%emt 0:00:03]} 4. Bg2 {[%emt 0:00:08]} Be7 {[%emt 0:00:05]} 5. d4 {[%emt 0:00:21]} O-O {[%emt 0:00:06]} 6. O-O {[%emt 0:00:11]} dxc4 {[%emt 0:00:02]} 7. Ne5 {[%emt 0:00:11]} Nc6 {[%emt 0:00:13]} 8. Nxc6 {[%emt 0:00:07]} bxc6 {[%emt 0:00:03]} 9. Na3 {[%emt 0:00:20]} Bxa3 {[%emt 0:00:56]} 10. bxa3 {[%emt 0:00:05]} Rb8 {[%emt 0:00:13] E05: Open Catalan: 5 Nf3 Be7.} 11. Qa4 {[%emt 0:04:08]} Nd5 {[%emt 0:02:13]} (11... Qxd4 $11 {keeps the balance.} 12. Be3 Qg4) 12. Qxc4 $16 {[%emt 0:06:22]} Rb6 {[%emt 0:01:19] White is better.} 13. Re1 {[%emt 0:04:13]} Ba6 {[%emt 0:00:54]} 14. Qc5 {[%emt 0:04:50] [#]} Qd7 $146 {[%emt 0:02:41]} (14... Qd6 $16) ({Predecessor:} 14... f5 15. a4 f4 16. Ba3 Rf7 17. a5 fxg3 18. hxg3 Rb8 19. e4 Qf6 20. f3 Rb5 21. Qxa7 {1-0 (35) Hertneck,G (2513)-Friedel,J (2555) Bad Wiessee 2009}) 15. e4 $18 {[%emt 0:04:41]} Rb5 {[%emt 0:01:16]} (15... Nf6 $16 {keeps fighting.} 16. Bf3 Rd8) 16. Qxa7 {[%emt 0:12:00]} Nb6 {[%emt 0:35:45]} 17. Bf4 {[%emt 0:19:05]} (17. Qxa6 $18 {is the precise move to win.} Ra8 18. Qb7) 17... g5 $16 {[%emt 0:05:20][%cal Bg7g5,Bg5f4,Bf4f3][%mdl 32]} 18. a4 {[%emt 0:04:03]} Rb4 {[%emt 0:13:16]} (18... Rb2 $16 {is a better defense.}) 19. Rab1 $2 {[%emt 0:13:52]} (19. Qxa6 $6 gxf4 20. Qa5 (20. gxf4 Rxa4 21. Qb7 Kh8 $11) 20... Qe7 $16) (19. Bxg5 $2 Ra8 20. Qxa8+ Nxa8 $19) (19. a5 $1 $18 Nc8 20. Qxa6 gxf4 21. gxf4) 19... Ra8 $1 $11 {[%emt 0:09:38]} 20. Qxa8+ {[%emt 0:06:11]} (20. Qxc7 gxf4 21. Qxf4 (21. Qxd7 Rxb1 22. Rxb1 Nxd7 $17) 21... Rxb1 22. Qg5+ Kf8 23. Qh6+ Ke8 24. Rxb1 Qxd4 25. Qxh7 Nd7 $17) 20... Nxa8 {[%emt 0:00:12]} 21. Rxb4 {[%emt 0:00:11]} gxf4 {[%emt 0:26:35]} 22. Rb8+ {[%emt 0:00:06]} Kg7 {[%emt 0:00:00] And now ...Nb6 would win.} 23. Rxa8 {[%emt 0:00:15]} Bc4 {[%emt 0:00:00]} 24. Rd1 {[%emt 0:03:35]} (24. Rb8 $11 {remains equal.}) 24... Be2 $1 $17 {[%emt 0:00:00]} 25. Rd2 {[%emt 0:01:48]} (25. Re1 $15 f3 26. Rb8) 25... f3 $19 {[%emt 0:00:00]} 26. Ra5 {[%emt 0:03:53]} (26. Rb8 {was the only defense.} c5 27. Rb3 cxd4 28. Bxf3 Bxf3 29. Rxf3) 26... c5 $2 {[%emt 0:00:00]} (26... Qd6 $19 {Strongly threatening ...Qb4.} 27. Rg5+ Kh8) 27. Rxc5 $11 {[%emt 0:03:52]} Qxa4 {[%emt 0:00:00] Hoping for ...Qb4.} 28. Rcc2 {[%emt 0:05:08]} (28. Rxc7 $2 Qb4 29. Rxe2 fxe2 $19) (28. Bf1 $1 $11) 28... e5 {[%emt 0:00:00]} (28... Qb4 $17 29. Rxe2 (29. Rb2 Qc3 $17) 29... fxe2 30. Rxe2 Qxd4) 29. dxe5 {[%emt 0:00:51]} (29. Rxc7 $2 Qb4 30. Rd1 Bxd1 $19) 29... Qxe4 {[%emt 0:00:00] [#]} (29... Qb5 $17 {( -> ...Qb1+)} 30. Rb2 Qxe5) 30. Bf1 {[%emt 0:01:38]} (30. Rc1 $1 $14) 30... Bxf1 {[%emt 0:00:00]} 31. Kxf1 {[%emt 0:00:08]} Qxe5 {[%emt 0:00:00][%mdl 4096] Endgame KQ-KRR} (31... Qb4 $5 32. Rd1 $8 Qg4 $11) 32. Rc1 {[%emt 0:00:20] Inhibits Qa1.} Qe6 {[%emt 0:00:00]} 33. Rc3 {[%emt 0:01:15]} Qh3+ {[%emt 0:00:00]} 34. Ke1 {[%emt 0:00:06] Active counter play!} Qg2 {[%emt 0:00:00][%cal Rg2h1]} 35. Kd1 {[%emt 0:00:30]} Qf1+ {[%emt 0:00:00]} ({Black should try} 35... Qxh2 $14 36. Rxc7 Qh1+ 37. Kc2 Qa1) 36. Kc2 $16 {[%emt 0:00:06]} Qa1 {[%emt 0:00:00] [#]} 37. Kd3 $1 {[%emt 0:02:04]} (37. Rxf3 $6 Qxa2+ 38. Kd1 Qb1+ 39. Ke2 c5 $11) 37... Qf1+ {[%emt 0:00:00]} 38. Kc2 {[%emt 0:00:16]} Qa1 $1 {[%emt 0:00:08]} ({Resist} 38... Qa6 39. a3 $16 (39. Rxc7 Qxa2+ 40. Kc1 Qa1+ 41. Kc2 Qa2+ 42. Kd1 Qb1+ 43. Rc1 Qb5 $11)) 39. a3 {[%emt 0:01:10]} ({Much worse is} 39. Rxf3 Qxa2+ 40. Kd1 Qb1+ 41. Ke2 c5 $11) (39. Kb3 $16) 39... Qa2+ $11 {[%emt 0:00:33] The position is equal.} 40. Kc1 {[%emt 0:00:35]} Qa1+ {[%emt 0:00:11]} 41. Kc2 {[%emt 0:03:29]} Qa2+ {[%emt 0:00:03]} 42. Kc1 {[%emt 0:00:33] Never resign too early!  Weighted Error Value: White=0.56/Black=0.43} 1/2-1/2

[Event "39th Muensterland Open 2022"]
[Site "Muenster"]
[Date "2022.10.07"]
[Round "8.4"]
[White "Gallasch, Robin"]
[Black "Blockhaus, Tobias"]
[Result "1-0"]
[ECO "E17"]
[WhiteElo "2021"]
[BlackElo "1693"]
[Annotator "TA"]
[PlyCount "73"]
[EventDate "2022.10.01"]
[EventType "swiss"]
[EventCountry "GER"]
[SourceTitle "playchess.com"]
[Source "ChessBase"]
[SourceQuality "1"]
[TimeControl "40/5400+30:1800+30"]

{[%evp 21,73,33,22,5,19,14,36,-11,-17,-12,-15,-22,-20,-22,-11,-21,8,8,13,13,8,0,11,0,0,0,0,-41,0,0,45,26,8,8,16,26,27,44,68,56,100,54,358,193,191,113,395,370,29988,29989,29993,29994,29994,29995]} 1. Nf3 {[%emt 0:00:11]} d5 {[%emt 0:00:28]} 2. g3 {[%emt 0:00:08]} b6 {[%emt 0:02:10]} 3. Bg2 {[%emt 0:00:13]} Bb7 {[%emt 0:00:16]} 4. O-O {[%emt 0:00:31]} Nf6 {[%emt 0:00:19]} 5. c4 {[%emt 0:09:29]} e6 {[%emt 0:09:00]} 6. d4 {[%emt 0:08:48]} Be7 {[%emt 0:02:47]} 7. Nc3 {[%emt 0:01:46]} O-O {[%emt 0:00:45]} 8. cxd5 {[%emt 0:01:35]} exd5 {[%emt 0:05:55]} 9. Bf4 {[%emt 0:00:25]} c6 {[%emt 0:13:15]} 10. Rc1 {[%emt 0:06:52]} Nbd7 {[%emt 0:02:05]} 11. Re1 {[%emt 0:05:17]} Re8 {[%emt 0:01:51]} 12. Qd3 {[%emt 0:07:37] [#] E17: Queen's Indian: 4 g3 Bb7 5 Bg2 Be7.} a5 $146 {[%emt 0:03:44]} ({Predecessor:} 12... Nf8 13. Nh4 Ne6 14. Bd2 Bf8 15. Nf5 Rc8 16. Rcd1 Rc7 17. Bc1 Rd7 18. Nh4 Ne4 19. Nf3 c5 {1-0 (75) Ambartsumova,K (2359)-Danielian,E (2417) St Petersburg 2019}) 13. h4 {[%emt 0:03:39]} Ne4 {[%emt 0:06:23]} 14. Ne5 {[%emt 0:16:54]} (14. Nxe4 dxe4 15. Qxe4 Bb4 $11) (14. Qc2 $14 {was preferrable.}) 14... Nxe5 $11 {[%emt 0:09:34]} 15. Bxe5 {[%emt 0:01:11]} Nxc3 {[%emt 0:06:28]} 16. bxc3 {[%emt 0:00:09]} Ba6 {[%emt 0:00:33]} 17. Qd2 {[%emt 0:04:53]} Ba3 {[%emt 0:04:16]} 18. Rb1 {[%emt 0:00:49]} f6 {[%emt 0:01:20]} 19. Bf4 {[%emt 0:00:06]} Bc4 {[%emt 0:01:18]} 20. Qc2 {[%emt 0:04:22]} b5 {[%emt 0:02:36] Inhibits Qa4.} 21. e4 {[%emt 0:03:01]} Bd6 {[%emt 0:03:22]} 22. e5 {[%emt 0:00:49]} fxe5 {[%emt 0:00:27]} 23. dxe5 {[%emt 0:00:03]} Bc5 {[%emt 0:00:14]} 24. h5 {[%emt 0:06:03][%cal Bh4h5,Bh5h6][%mdl 32]} (24. Bf1) 24... b4 {[%emt 0:03:37]} (24... Qd7) 25. h6 {[%emt 0:01:32]} Ra7 {[%emt 0:02:10]} 26. hxg7 {[%emt 0:03:33]} bxc3 {[%emt 0:01:19]} 27. Qxc3 {[%emt 0:07:17][%cal Oe1e4]} Bb4 {[%emt 0:01:09]} 28. Qe3 {[%emt 0:00:06] Dancing on a razor blade.} ({But not} 28. Rxb4 axb4 29. Qxb4 Qe7 30. Qxe7 (30. Qb6 Ra6 $11) 30... Raxe7 $11) 28... Rxg7 {[%emt 0:04:24]} 29. Red1 {[%emt 0:00:45]} Bxa2 {[%emt 0:01:23]} (29... Qe7) 30. Rbc1 {[%emt 0:00:09] Rc2 is the strong threat.} Qa8 {[%emt 0:01:48] [#]} 31. Bg5 {[%emt 0:02:50]} (31. Bh6 $1 $16 {[%cal Rh6g7]} Rg6 32. Rc2) 31... Bc4 $2 {[%emt 0:03:43][%mdl 8192]} (31... Rg6) (31... Rg6 $1 $14) 32. Bf6 $18 {[%emt 0:00:29]} Rg6 {[%emt 0:01:23] [#] And now ...Rxf6 would win.} (32... Qa7) 33. Qd4 {[%emt 0:01:47]} ({Better is} 33. Be4 $1 $18 {[%mdl 512]} dxe4 34. Rxc4) 33... c5 $2 {[%emt 0:01:44][%mdl 8192]} (33... Qc8) (33... Qc8 $16) 34. Qh4 {[%emt 0:00:08]} Qc8 $2 {[%emt 0:01:43]} (34... Ba2 35. Qh1 Qc6 36. Rxd5 (36. Bxd5+ Bxd5 37. Rxd5 c4) 36... Rxf6) (34... Ba2 $18 35. Rd3 Qc8 36. Rxd5 (36. Bxd5+ Bxd5 37. Rxd5 Qf5 $18) 36... Qg4) 35. Rxc4 {[%emt 0:00:31][%mdl 64] Remove Defender. White mates.} dxc4 {[%emt 0:02:58]} 36. Bd5+ {[%emt 0:00:05] A strong pair of Bishops.} Re6 {[%emt 0:01:08]} 37. Bxe6+ {[%emt 0:00:07] Weighted Error Value: White=0.14 (very precise) /Black=0.52} 1-0